[Event "EYCC Open U14 2021"]
[Site "Tornelo"]
[Date "2021.10.15"]
[Round "2.10"]
[White "Ponomarev, Vsevolod"]
[Black "Thatte, Nishchal"]
[Result "1-0"]
[ECO "B92"]
[WhiteElo "2135"]
[BlackElo "1886"]
[Annotator "NA"]
[PlyCount "99"]
[EventDate "2021.10.15"]
[EventType "swiss"]
[EventCountry "NET"]
[SourceTitle "playchess.com"]
[Source "ChessBase"]
[SourceQuality "1"]
[TimeControl "5400+30"]

1. e4 {[%emt 0:00:30]} c5 {[%emt 0:00:36]} 2. Nf3 {[%emt 0:00:10]} d6 {[%emt 0:00:04]} 3. d4 {[%emt 0:00:03]} cxd4 {[%emt 0:00:02]} 4. Nxd4 {[%emt 0:00:04]} Nf6 {[%emt 0:00:04]} 5. Nc3 {[%emt 0:00:04]} a6 {[%emt 0:00:04]} 6. Be2 {[%emt 0:00:24]} e5 {[%emt 0:00:05]} 7. Nb3 {[%emt 0:01:05]} Be7 {[%emt 0:00:05]} 8. a4 {[%emt 0:06:40]} Nc6 {[%emt 0:04:22]} 9. O-O {[%emt 0:00:21]} O-O {[%emt 0:00:07]} 10. Bf3 {[%emt 0:02:05]} Be6 {[%emt 0:01:53]} 11. Be3 {[%emt 0:00:09]} Rc8 {[%emt 0:04:48]} 12. Qd2 {[%emt 0:04:02]} Qc7 {[%emt 0:09:53]} 13. Rfc1 {[%emt 0:10:26]} Rfd8 {[%emt 0:02:40]} 14. a5 {[%emt 0:03:05]} Rd7 {[%emt 0:10:54]} 15. Nd5 {[%emt 0:07:35]} Bxd5 {[%emt 0:02:59]} 16. exd5 {[%emt 0:00:05]} Nb8 {[%emt 0:06:04]} 17. c4 {[%emt 0:04:27]} Qd8 {[%emt 0:01:18]} 18. g3 $16 {[%emt 0:01:51]} Qf8 {[%emt 0:01:17]} 19. Ra4 {[%emt 0:05:11]} Ne8 {[%emt 0:02:47]} 20. Bg2 {[%emt 0:02:20]} Rdc7 {[%emt 0:01:34]} 21. Bb6 {[%emt 0:03:48]} Rd7 {[%emt 0:00:46]} 22. Bh3 {[%emt 0:01:18]} f5 {[%emt 0:00:16]} 23. f4 {[%emt 0:01:09]} Qf7 {[%emt 0:04:25]} 24. Qe2 {[%emt 0:01:33]} g6 {[%emt 0:03:38]} 25. fxe5 {[%emt 0:09:29]} dxe5 {[%emt 0:00:04]} 26. Qxe5 {[%emt 0:00:34]} Bf6 {[%emt 0:01:49]} 27. Qf4 {[%emt 0:01:21]} Qe7 {[%emt 0:05:26]} 28. Qf2 {[%emt 0:02:45]} Nd6 {[%emt 0:04:14]} 29. Bg2 {[%emt 0:06:45]} Qe8 {[%emt 0:02:20]} 30. Bd4 {[%emt 0:08:57]} Bg5 {[%emt 0:02:23]} 31. Re1 {[%emt 0:02:12]} Re7 {[%emt 0:00:09]} 32. Rxe7 {[%emt 0:00:43]} Bxe7 {[%emt 0:00:11]} 33. Ra1 {[%emt 0:00:21]} Rxc4 {[%emt 0:03:43]} 34. Nc5 {[%emt 0:01:23]} Qc8 {[%emt 0:01:34]} 35. Nd3 {[%emt 0:01:04]} Nd7 {[%emt 0:03:40]} 36. Qe3 {[%emt 0:01:23]} Bf8 {[%emt 0:06:44]} 37. Qe6+ {[%emt 0:00:45]} Nf7 {[%emt 0:00:08]} 38. Bc3 {[%emt 0:00:37]} Qc7 {[%emt 0:02:33]} 39. d6 {[%emt 0:02:09]} Bxd6 {[%emt 0:02:25]} 40. Bd5 {[%emt 0:00:05]} Nf8 {[%emt 0:08:30]} 41. Qf6 {[%emt 0:00:19]} Rxc3 {[%emt 0:01:01]} 42. bxc3 {[%emt 0:00:29]} h6 {[%emt 0:01:56]} 43. Bxf7+ {[%emt 0:00:13]} Kh7 {[%emt 0:00:11]} 44. Bd5 {[%emt 0:00:19]} Bxg3 {[%emt 0:00:17]} 45. Qxf8 {[%emt 0:00:35]} Bxh2+ {[%emt 0:00:22]} 46. Kh1 {[%emt 0:00:05]} h5 {[%emt 0:00:15]} 47. Bg8+ {[%emt 0:00:13]} Kh8 {[%emt 0:00:04]} 48. Bf7+ {[%emt 0:00:03]} Kh7 {[%emt 0:00:11]} 49. Qg8+ {[%emt 0:00:03]} Kh6 {[%emt 0:00:02]} 50. Qxg6# {[%emt 0:00:02]} 1-0

[Event "EYCC Open U14 2021"]
[Site "Tornelo"]
[Date "2021.10.15"]
[Round "2.11"]
[White "Shinkarov, Artem"]
[Black "Ince, Taylan Ruzgar"]
[Result "1/2-1/2"]
[ECO "A34"]
[WhiteElo "1894"]
[BlackElo "2124"]
[Annotator "ChessBase"]
[PlyCount "51"]
[EventDate "2021.10.15"]
[EventType "swiss"]
[EventCountry "NET"]
[SourceTitle "playchess.com"]
[Source "ChessBase"]
[SourceQuality "1"]
[TimeControl "5400+30"]

1. Nf3 {[%emt 0:00:30]} Nf6 {[%emt 0:00:39]} 2. c4 {[%emt 0:00:15]} g6 {[%emt 0:00:07]} 3. Nc3 {[%emt 0:00:06]} d5 {[%emt 0:00:06]} 4. cxd5 {[%emt 0:00:03]} Nxd5 {[%emt 0:00:05]} 5. e4 {[%emt 0:00:04]} Nxc3 {[%emt 0:00:07]} 6. dxc3 {[%emt 0:00:03]} Qxd1+ {[%emt 0:00:16]} 7. Kxd1 {[%emt 0:00:03]} Bg7 {[%emt 0:02:33]} 8. Bf4 {[%emt 0:01:11]} c5 {[%emt 0:05:43]} 9. Kc2 {[%emt 0:06:28]} Nc6 {[%emt 0:01:48]} 10. Bb5 {[%emt 0:04:53]} Bd7 {[%emt 0:01:07]} 11. Rhd1 {[%emt 0:00:25]} Rc8 {[%emt 0:02:51]} 12. a4 {[%emt 0:01:24]} a6 {[%emt 0:02:11]} 13. Bc4 {[%emt 0:04:08]} e6 {[%emt 0:17:47]} 14. Be2 {[%emt 0:12:55]} e5 {[%emt 0:06:42]} 15. Bg5 {[%emt 0:03:57]} f6 {[%emt 0:00:37]} 16. Bc1 {[%emt 0:04:08]} Be6 {[%emt 0:01:43]} 17. Nd2 {[%emt 0:00:44]} Na5 {[%emt 0:01:40]} 18. b3 {[%emt 0:00:34]} Kf7 {[%emt 0:13:09]} 19. Nc4 {[%emt 0:00:29]} Nxc4 {[%emt 0:00:22]} 20. Bxc4 {[%emt 0:00:12]} Rhd8 {[%emt 0:00:19]} 21. Be3 {[%emt 0:00:09]} Bf8 {[%emt 0:00:15]} 22. Bxe6+ {[%emt 0:01:36]} Kxe6 {[%emt 0:00:13]} 23. c4 {[%emt 0:00:06]} Rxd1 {[%emt 0:02:29]} 24. Rxd1 {[%emt 0:00:05]} a5 {[%emt 0:00:08]} 25. Kd3 {[%emt 0:05:00]} Bd6 {[%emt 0:01:19]} 26. Ke2 {[%emt 0:00:10]} 1/2-1/2

[Event "EYCC Open U14 2021"]
[Site "Tornelo"]
[Date "2021.10.15"]
[Round "2.12"]
[White "Aleksanyan, Davit"]
[Black "Skrbec, Leon"]
[Result "1-0"]
[ECO "B23"]
[WhiteElo "1795"]
[BlackElo "2091"]
[Annotator "NA"]
[PlyCount "97"]
[EventDate "2021.10.15"]
[EventType "swiss"]
[EventCountry "NET"]
[SourceTitle "playchess.com"]
[Source "ChessBase"]
[SourceQuality "1"]
[TimeControl "5400+30"]

1. e4 {[%emt 0:00:30]} c5 {[%emt 0:00:39]} 2. Nc3 {[%emt 0:00:06]} d6 {[%emt 0:00:09]} 3. f4 {[%emt 0:00:16]} Nc6 {[%emt 0:00:12]} 4. Nf3 {[%emt 0:00:05]} g6 {[%emt 0:00:03]} 5. Bc4 {[%emt 0:00:05]} Bg7 {[%emt 0:00:06]} 6. O-O {[%emt 0:00:04]} e6 {[%emt 0:00:11]} 7. d3 {[%emt 0:00:06]} Nge7 {[%emt 0:00:07]} 8. Qe1 {[%emt 0:00:12]} O-O {[%emt 0:00:21]} 9. Qh4 {[%emt 0:01:56]} Nd4 {[%emt 0:01:17]} 10. f5 {[%emt 0:01:50]} Nec6 {[%emt 0:03:36]} 11. Ng5 {[%emt 0:04:04]} h5 {[%emt 0:01:40]} 12. g4 {[%emt 0:00:33]} Ne5 {[%emt 0:00:42]} 13. gxh5 {[%emt 0:31:13]} Nef3+ {[%emt 0:01:21]} 14. Rxf3 {[%emt 0:00:11]} Nxf3+ {[%emt 0:00:04]} 15. Nxf3 {[%emt 0:00:06]} Qxh4 {[%emt 0:00:12]} 16. Nxh4 {[%emt 0:00:05]} Bf6 {[%emt 0:01:13]} 17. Nf3 {[%emt 0:00:32]} gxh5 {[%emt 0:01:12]} 18. Bf4 {[%emt 0:01:30]} Rd8 {[%emt 0:02:14]} 19. fxe6 {[%emt 0:02:44]} fxe6 {[%emt 0:00:37]} 20. e5 {[%emt 0:00:32]} dxe5 {[%emt 0:00:21]} 21. Bxe5 {[%emt 0:00:13]} Be7 {[%emt 0:02:05]} 22. Nb5 {[%emt 0:00:33]} a6 {[%emt 0:12:15]} 23. Nc7 {[%emt 0:00:16]} Ra7 {[%emt 0:00:08]} 24. Nxe6 {[%emt 0:00:14]} Bxe6 {[%emt 0:00:03]} 25. Bxe6+ {[%emt 0:00:03]} Kh7 {[%emt 0:00:05]} 26. Bf5+ {[%emt 0:01:30]} Kh6 {[%emt 0:00:24]} 27. Kf2 {[%emt 0:00:21]} Rf8 {[%emt 0:01:45]} 28. Be4 {[%emt 0:00:22]} Rg8 {[%emt 0:04:57]} 29. Bf4+ {[%emt 0:00:24]} Bg5 {[%emt 0:01:47]} 30. Nxg5 {[%emt 0:00:12]} Kg7 {[%emt 0:01:19]} 31. Ne6+ {[%emt 0:00:15]} Kf6 {[%emt 0:00:09]} 32. Nxc5 {[%emt 0:00:11]} b6 {[%emt 0:00:25]} 33. Nb7 {[%emt 0:00:03]} Raa8 {[%emt 0:00:57]} 34. Rg1 {[%emt 0:00:19]} Rxg1 {[%emt 0:00:28]} 35. Kxg1 {[%emt 0:00:03]} Rc8 {[%emt 0:00:10]} 36. c3 $18 {[%emt 0:00:11]} h4 {[%emt 0:00:24]} 37. Nd6 {[%emt 0:00:12]} Rg8+ {[%emt 0:00:10]} 38. Kf2 {[%emt 0:00:08]} Rg4 {[%emt 0:00:15]} 39. Be3 {[%emt 0:00:28]} h3 {[%emt 0:00:26]} 40. Nf5 {[%emt 0:00:20]} b5 {[%emt 0:00:31]} 41. Ng3 {[%emt 0:00:11]} a5 {[%emt 0:00:33]} 42. Kf3 {[%emt 0:00:17]} Rg8 {[%emt 0:00:13]} 43. Bd4+ {[%emt 0:00:05]} Ke7 {[%emt 0:00:11]} 44. Bf5 {[%emt 0:00:05]} b4 {[%emt 0:00:49]} 45. c4 {[%emt 0:00:12]} Kd6 {[%emt 0:00:26]} 46. Bxh3 {[%emt 0:00:05]} a4 {[%emt 0:00:34]} 47. Bf5 {[%emt 0:00:05]} a3 {[%emt 0:00:20]} 48. b3 {[%emt 0:00:06]} Re8 {[%emt 0:00:11]} 49. Kf2 {[%emt 0:00:04]} 1-0

[Event "EYCC Open U14 2021"]
[Site "Tornelo"]
[Date "2021.10.15"]
[Round "3.1"]
[White "Krawczyk, Flawian"]
[Black "Khubukshanov, Erdem"]
[Result "0-1"]
[ECO "B15"]
[WhiteElo "2070"]
[BlackElo "2373"]
[Annotator "NA"]
[PlyCount "54"]
[EventDate "2021.10.15"]
[EventType "swiss"]
[EventCountry "NET"]
[SourceTitle "playchess.com"]
[Source "ChessBase"]
[SourceQuality "1"]
[TimeControl "5400+30"]

1. e4 {[%emt 0:00:30]} c6 {[%emt 0:00:34]} 2. d4 {[%emt 0:00:22]} d5 {[%emt 0:00:03]} 3. Nc3 {[%emt 0:00:07]} dxe4 {[%emt 0:00:03]} 4. Nxe4 {[%emt 0:00:12]} Nf6 {[%emt 0:00:03]} 5. Nxf6+ {[%emt 0:00:07]} exf6 {[%emt 0:00:03]} 6. c3 {[%emt 0:00:11]} Bd6 {[%emt 0:00:10]} 7. Bd3 {[%emt 0:00:11]} Na6 {[%emt 0:00:04]} 8. Ne2 {[%emt 0:02:06]} Nc7 {[%emt 0:00:06]} 9. Qc2 {[%emt 0:03:54]} h5 {[%emt 0:00:07]} 10. O-O {[%emt 0:03:55]} Kf8 {[%emt 0:07:51]} 11. c4 {[%emt 0:03:13]} Ne6 {[%emt 0:03:54]} 12. Be3 {[%emt 0:01:48]} g6 {[%emt 0:01:08]} 13. Rad1 {[%emt 0:03:44]} Kg7 {[%emt 0:08:08]} 14. d5 {[%emt 0:01:38]} cxd5 {[%emt 0:00:13]} 15. cxd5 {[%emt 0:00:07]} Nc7 {[%emt 0:00:36]} 16. Nc3 {[%emt 0:03:35]} Re8 {[%emt 0:04:50]} 17. Ne4 {[%emt 0:05:10]} Bg4 {[%emt 0:03:36]} 18. f3 {[%emt 0:06:17]} Nxd5 {[%emt 0:17:46]} 19. Bd4 {[%emt 0:07:28]} Be5 {[%emt 0:01:52]} 20. Bxe5 {[%emt 0:02:05]} Rxe5 {[%emt 0:00:08]} 21. fxg4 {[%emt 0:09:06]} Ne3 {[%emt 0:00:53]} 22. Qf2 {[%emt 0:02:31]} Rxe4 {[%emt 0:02:06]} 23. Bxe4 {[%emt 0:00:59]} Nxd1 {[%emt 0:00:06]} 24. Qf3 {[%emt 0:00:27]} Qd4+ {[%emt 0:00:38]} 25. Kh1 {[%emt 0:01:30]} Ne3 {[%emt 0:00:06]} 26. Rc1 {[%emt 0:02:22]} hxg4 {[%emt 0:00:37]} 27. Qf4 {[%emt 0:01:08]} Re8 {[%emt 0:00:05]} 0-1

[Event "EYCC Open U14 2021"]
[Site "Tornelo"]
[Date "2021.10.15"]
[Round "3.2"]
[White "Magalakis, Stefanos"]
[Black "Seemann, Jakub"]
[Result "0-1"]
[ECO "D02"]
[WhiteElo "2065"]
[BlackElo "2299"]
[Annotator "NA"]
[PlyCount "80"]
[EventDate "2021.10.15"]
[EventType "swiss"]
[EventCountry "NET"]
[SourceTitle "playchess.com"]
[Source "ChessBase"]
[SourceQuality "1"]
[TimeControl "5400+30"]

1. Nf3 {[%emt 0:00:30]} d5 {[%emt 0:00:47]} 2. g3 {[%emt 0:00:07]} g6 {[%emt 0:00:06]} 3. Bg2 {[%emt 0:00:14]} Bg7 {[%emt 0:00:06]} 4. d4 {[%emt 0:01:39]} Nf6 {[%emt 0:00:18]} 5. O-O {[%emt 0:00:03]} Nbd7 {[%emt 0:00:47]} 6. c4 {[%emt 0:01:46]} dxc4 {[%emt 0:00:06]} 7. Na3 {[%emt 0:00:07]} Nb6 {[%emt 0:02:50]} 8. Nxc4 {[%emt 0:00:17]} Nxc4 {[%emt 0:02:15]} 9. Qa4+ {[%emt 0:00:09]} c6 {[%emt 0:00:05]} 10. Qxc4 {[%emt 0:00:04]} Be6 {[%emt 0:00:22]} 11. Qa4 {[%emt 0:03:30]} Bd5 {[%emt 0:00:44]} 12. Ne1 {[%emt 0:05:29]} Bxg2 {[%emt 0:01:59]} 13. Kxg2 {[%emt 0:00:14]} O-O {[%emt 0:01:10]} 14. f3 {[%emt 0:02:58]} b5 {[%emt 0:03:08]} 15. Qb4 {[%emt 0:06:06]} Nd5 {[%emt 0:07:47]} 16. Qc5 {[%emt 0:19:04]} Qb6 {[%emt 0:03:33]} 17. Qxb6 {[%emt 0:00:58]} Nxb6 {[%emt 0:01:08]} 18. Nc2 {[%emt 0:05:12]} Rfd8 {[%emt 0:01:49]} 19. Bg5 {[%emt 0:01:49]} h6 {[%emt 0:06:37]} 20. Bxe7 {[%emt 0:05:31]} Re8 {[%emt 0:01:10]} 21. Bc5 {[%emt 0:00:47]} Rxe2+ {[%emt 0:00:06]} 22. Rf2 {[%emt 0:00:03]} Re6 {[%emt 0:05:52]} 23. Re1 {[%emt 0:05:53]} Rxe1 {[%emt 0:02:28]} 24. Nxe1 {[%emt 0:00:40]} Na4 {[%emt 0:08:59]} 25. Nd3 {[%emt 0:11:47]} a5 {[%emt 0:04:14]} 26. Nc1 {[%emt 0:02:50]} Nxc5 {[%emt 0:03:47]} 27. dxc5 {[%emt 0:00:45]} Bd4 {[%emt 0:00:10]} 28. Rd2 {[%emt 0:01:39]} Bxc5 {[%emt 0:02:05]} 29. Rc2 {[%emt 0:00:17]} Be3 {[%emt 0:00:21]} 30. Rxc6 {[%emt 0:00:23]} Rd8 {[%emt 0:00:08]} 31. Kh3 {[%emt 0:11:32]} Rd1 {[%emt 0:06:07]} 32. Nb3 {[%emt 0:06:48]} a4 {[%emt 0:00:12]} 33. Rc3 {[%emt 0:00:09]} axb3 {[%emt 0:00:59]} 34. Rxb3 {[%emt 0:00:04]} Bg1 {[%emt 0:00:10]} 35. Rxb5 {[%emt 0:01:10]} Rd2 {[%emt 0:00:06]} 36. a4 {[%emt 0:03:50]} f5 {[%emt 0:00:28]} 37. g4 {[%emt 0:00:46]} f4 {[%emt 0:00:16]} 38. Rb8+ {[%emt 0:01:22]} Kf7 {[%emt 0:00:06]} 39. Rb7+ {[%emt 0:00:09]} Ke6 {[%emt 0:00:10]} 40. Rb6+ {[%emt 0:00:04]} Bxb6 {[%emt 0:00:05]} 0-1

[Event "EYCC Open U14 2021"]
[Site "Tornelo"]
[Date "2021.10.15"]
[Round "3.3"]
[White "Lavrencic, Matic"]
[Black "Gasanov, Vadim"]
[Result "0-1"]
[ECO "B76"]
[WhiteElo "2149"]
[BlackElo "2027"]
[Annotator "NA"]
[PlyCount "106"]
[EventDate "2021.10.15"]
[EventType "swiss"]
[EventCountry "NET"]
[SourceTitle "playchess.com"]
[Source "ChessBase"]
[SourceQuality "1"]
[TimeControl "5400+30"]

1. e4 {[%emt 0:00:30]} c5 {[%emt 0:00:33]} 2. Nf3 {[%emt 0:00:05]} d6 {[%emt 0:00:05]} 3. d4 {[%emt 0:00:09]} cxd4 {[%emt 0:00:05]} 4. Nxd4 {[%emt 0:00:07]} Nf6 {[%emt 0:00:06]} 5. Nc3 {[%emt 0:00:05]} g6 {[%emt 0:00:05]} 6. Be3 {[%emt 0:00:19]} Bg7 {[%emt 0:00:05]} 7. f3 {[%emt 0:00:08]} O-O {[%emt 0:00:03]} 8. Qd2 {[%emt 0:00:03]} Nc6 {[%emt 0:00:06]} 9. O-O-O {[%emt 0:00:04]} d5 {[%emt 0:00:04]} 10. exd5 {[%emt 0:00:24]} Nxd5 {[%emt 0:00:07]} 11. Nxc6 {[%emt 0:00:11]} bxc6 {[%emt 0:00:07]} 12. Bd4 {[%emt 0:00:05]} e5 {[%emt 0:00:22]} 13. Bc5 {[%emt 0:00:09]} Be6 {[%emt 0:00:05]} 14. Ne4 {[%emt 0:00:11]} Re8 {[%emt 0:00:06]} 15. h4 {[%emt 0:00:11]} Nf4 {[%emt 0:00:11]} 16. Qxd8 {[%emt 0:00:27]} Rexd8 {[%emt 0:02:37]} 17. Rxd8+ {[%emt 0:05:11]} Rxd8 {[%emt 0:00:08]} 18. b3 {[%emt 0:01:03]} Bf8 {[%emt 0:04:04]} 19. g3 {[%emt 0:00:53]} Nh5 {[%emt 0:02:06]} 20. Bxf8 {[%emt 0:00:18]} Kxf8 {[%emt 0:00:36]} 21. Rg1 {[%emt 0:00:07]} Bd5 {[%emt 0:02:31]} 22. Nd2 {[%emt 0:02:33]} f5 {[%emt 0:03:29]} 23. Bd3 {[%emt 0:02:55]} Kf7 {[%emt 0:17:46]} 24. c4 {[%emt 0:05:26]} Be6 {[%emt 0:00:29]} 25. Kc2 {[%emt 0:00:16]} c5 {[%emt 0:05:46]} 26. Nb1 {[%emt 0:01:30]} Bd7 {[%emt 0:01:58]} 27. Nc3 {[%emt 0:06:18]} Bc6 {[%emt 0:00:38]} 28. Be2 {[%emt 0:04:03]} f4 {[%emt 0:00:35]} 29. g4 {[%emt 0:04:55]} Ng3 {[%emt 0:00:21]} 30. Bd1 {[%emt 0:01:15]} Rd4 {[%emt 0:01:23]} 31. Re1 {[%emt 0:03:31]} Kf6 {[%emt 0:01:39]} 32. a3 {[%emt 0:02:59]} a6 {[%emt 0:01:14]} 33. Nd5+ {[%emt 0:01:53]} Bxd5 {[%emt 0:00:10]} 34. cxd5 {[%emt 0:00:02]} Rxd5 {[%emt 0:05:32]} 35. g5+ {[%emt 0:01:42]} Ke6 {[%emt 0:00:26]} 36. Kc3 {[%emt 0:00:37]} Nf5 {[%emt 0:00:23]} 37. b4 {[%emt 0:00:13]} Nd4 {[%emt 0:00:38]} 38. Kb2 {[%emt 0:03:54]} Kd6 {[%emt 0:00:25]} 39. h5 {[%emt 0:01:07]} cxb4 {[%emt 0:01:18]} 40. axb4 {[%emt 0:00:08]} a5 {[%emt 0:01:40]} 41. hxg6 {[%emt 0:00:51]} hxg6 {[%emt 0:00:11]} 42. bxa5 {[%emt 0:03:05]} Rxa5 {[%emt 0:00:11]} 43. Rh1 {[%emt 0:01:20]} Ke6 {[%emt 0:00:21]} 44. Re1 {[%emt 0:01:41]} Kf5 {[%emt 0:00:26]} 45. Rg1 {[%emt 0:00:19]} Ra7 {[%emt 0:00:43]} 46. Rg2 {[%emt 0:01:30]} Rh7 {[%emt 0:00:26]} 47. Kc3 {[%emt 0:00:36]} Rh3 {[%emt 0:00:27]} 48. Kc4 {[%emt 0:02:15]} Nxf3 {[%emt 0:00:18]} 49. Kd5 {[%emt 0:08:20]} e4 {[%emt 0:01:22]} 50. Ba4 {[%emt 0:05:10]} Ne5 {[%emt 0:00:13]} 51. Bc2 {[%emt 0:00:49]} Re3 {[%emt 0:00:48]} 52. Rf2 {[%emt 0:02:08]} Nd3 {[%emt 0:00:17]} 53. Ba4 {[%emt 0:00:43]} Nxf2 {[%emt 0:00:10]} 0-1

[Event "EYCC Open U14 2021"]
[Site "Tornelo"]
[Date "2021.10.15"]
[Round "3.4"]
[White "Andreev, Konstantin"]
[Black "Ponomarev, Vsevolod"]
[Result "1/2-1/2"]
[ECO "B12"]
[WhiteElo "2238"]
[BlackElo "2135"]
[Annotator "NA"]
[PlyCount "61"]
[EventDate "2021.10.15"]
[EventType "swiss"]
[EventCountry "NET"]
[SourceTitle "playchess.com"]
[Source "ChessBase"]
[SourceQuality "1"]
[TimeControl "5400+30"]

1. e4 {[%emt 0:00:30]} c6 {[%emt 0:00:34]} 2. d4 {[%emt 0:00:15]} d5 {[%emt 0:00:03]} 3. e5 {[%emt 0:00:05]} Bf5 {[%emt 0:00:03]} 4. Nf3 {[%emt 0:00:07]} e6 {[%emt 0:00:26]} 5. Be2 {[%emt 0:00:07]} c5 {[%emt 0:00:39]} 6. c4 {[%emt 0:01:24]} dxc4 {[%emt 0:04:28]} 7. Bxc4 {[%emt 0:00:34]} Nc6 {[%emt 0:02:04]} 8. Be3 {[%emt 0:18:12]} Nge7 {[%emt 0:21:42]} 9. Nc3 {[%emt 0:15:44]} Bg4 {[%emt 0:11:03]} 10. dxc5 {[%emt 0:04:38]} Nf5 {[%emt 0:03:16]} 11. Ne4 {[%emt 0:20:20]} Nxe3 {[%emt 0:09:17]} 12. fxe3 {[%emt 0:00:24]} Bxf3 {[%emt 0:00:51]} 13. Qxd8+ {[%emt 0:02:18]} Rxd8 {[%emt 0:00:19]} 14. gxf3 {[%emt 0:00:16]} Nxe5 {[%emt 0:00:28]} 15. Bb5+ {[%emt 0:00:12]} Nc6 {[%emt 0:00:13]} 16. Ke2 {[%emt 0:01:18]} Be7 {[%emt 0:03:47]} 17. Rhd1 {[%emt 0:01:30]} O-O {[%emt 0:04:44]} 18. Nd6 {[%emt 0:00:44]} a6 {[%emt 0:08:59]} 19. Ba4 {[%emt 0:06:07]} Bxd6 {[%emt 0:06:32]} 20. cxd6 {[%emt 0:01:27]} b5 {[%emt 0:01:58]} 21. Rac1 {[%emt 0:02:09]} Na5 {[%emt 0:02:39]} 22. Bb3 {[%emt 0:00:12]} Rd7 {[%emt 0:00:49]} 23. e4 {[%emt 0:02:40]} Nxb3 {[%emt 0:03:57]} 24. axb3 {[%emt 0:00:12]} f6 {[%emt 0:02:42]} 25. f4 {[%emt 0:00:44]} e5 {[%emt 0:03:00]} 26. fxe5 {[%emt 0:00:24]} fxe5 {[%emt 0:00:03]} 27. Rc6 {[%emt 0:02:40]} Rf6 {[%emt 0:02:53]} 28. h3 {[%emt 0:02:52]} Rh6 {[%emt 0:00:40]} 29. Rd3 {[%emt 0:00:40]} Kf7 {[%emt 0:01:02]} 30. Rxa6 {[%emt 0:05:25]} Rh4 {[%emt 0:00:36]} 31. Re3 {[%emt 0:01:31]} 1/2-1/2